[Event "Titled Tuesday Blitz June 28 Late 2022"]
[White "Clarke, Brandon G I"]
[Black "Plazuelo Pascual, Juan"]
[WhiteFideId "400319"]
[BlackFideId "32059566"]
[WhiteElo "2802"]
[BlackElo "2615"]
[Result "0-1"]
[Round "11"]
[TimeControl "180+1"]
[Date "2022.06.28"]
[WhiteClock "0:00:19"]
[BlackClock "0:00:10"]

1. e4 {[%clk 0:03:00]}  c5 {[%clk 0:03:00]} 2. Nf3 {[%clk 0:02:56]}  Nc6 {[%clk 0:02:59]} 3. Nc3 {[%clk 0:02:55]}  e5 {[%clk 0:02:58]} 4. Bc4 {[%clk 0:02:55]}  Be7 {[%clk 0:02:56]} 5. d3 {[%clk 0:02:54]}  d6 {[%clk 0:02:56]} 6. Nd2 {[%clk 0:02:55]}  Nf6 {[%clk 0:02:55]} 7. Nf1 {[%clk 0:02:55]}  O-O {[%clk 0:02:54]} 8. Ne3 {[%clk 0:02:53]}  a6 {[%clk 0:02:53]} 9. a4 {[%clk 0:02:52]}  Nb4 {[%clk 0:02:43]} 10. O-O {[%clk 0:02:51]}  Be6 {[%clk 0:02:43]} 11. Ncd5 {[%clk 0:02:26]}  Nbxd5 {[%clk 0:02:38]} 12. exd5 {[%clk 0:02:19]}  Bd7 {[%clk 0:02:38]} 13. a5 {[%clk 0:02:18]}  Ne8 {[%clk 0:02:37]} 14. c3 {[%clk 0:02:12]}  f5 {[%clk 0:02:35]} 15. f4 {[%clk 0:02:13]}  exf4 {[%clk 0:02:20]} 16. Rxf4 {[%clk 0:02:12]}  g5 {[%clk 0:02:21]} 17. Rf2 {[%clk 0:02:12]}  f4 {[%clk 0:02:01]} 18. Nf1 {[%clk 0:02:11]}  Nf6 {[%clk 0:01:44]} 19. h3 {[%clk 0:02:11]}  Qe8 {[%clk 0:01:33]} 20. Nd2 {[%clk 0:02:10]}  Qg6 {[%clk 0:01:30]} 21. Re2 {[%clk 0:01:49]}  Rae8 {[%clk 0:01:28]} 22. Qf1 {[%clk 0:01:43]}  g4 {[%clk 0:01:25]} 23. hxg4 {[%clk 0:01:23]}  Nxg4 {[%clk 0:01:12]} 24. Nf3 {[%clk 0:01:23]}  Qh5 {[%clk 0:01:06]} 25. Bd2 {[%clk 0:01:21]}  Rf6 {[%clk 0:00:46]} 26. g3 {[%clk 0:01:05]}  fxg3 {[%clk 0:00:39]} 27. Qg2 {[%clk 0:01:06]}  Ref8 {[%clk 0:00:15]} 28. Rf1 {[%clk 0:00:58]}  Bd8 {[%clk 0:00:12]} 29. d4 {[%clk 0:00:54]}  Kh8 {[%clk 0:00:11]} 30. dxc5 {[%clk 0:00:43]}  Nh2 {[%clk 0:00:11]} 31. Re3 {[%clk 0:00:17]}  Nxf1 {[%clk 0:00:07]} 32. Bxf1 {[%clk 0:00:18]}  Rxf3 {[%clk 0:00:06]} 33. Be2 {[%clk 0:00:18]}  Qh2+ {[%clk 0:00:06]} 34. Qxh2 {[%clk 0:00:19]}  gxh2+ {[%clk 0:00:07]} 35. Kxh2 {[%clk 0:00:19]}  Rxe3 {[%clk 0:00:07]} 36. Bxe3 {[%clk 0:00:20]}  dxc5 {[%clk 0:00:06]} 37. Bxc5 {[%clk 0:00:20]}  Re8 {[%clk 0:00:04]} 38. Bf3 {[%clk 0:00:20]}  Bf6 {[%clk 0:00:04]} 39. Kg3 {[%clk 0:00:19]}  Be5+ {[%clk 0:00:04]} 40. Kf2 {[%clk 0:00:19]}  Rc8 {[%clk 0:00:03]} 41. Bb6 {[%clk 0:00:19]}  Kg7 {[%clk 0:00:04]} 42. Ke3 {[%clk 0:00:19]}  Kf6 {[%clk 0:00:04]} 43. Be4 {[%clk 0:00:19]}  h5 {[%clk 0:00:03]} 44. Kf3 {[%clk 0:00:18]}  h4 {[%clk 0:00:03]} 45. Bf2 {[%clk 0:00:17]}  h3 {[%clk 0:00:04]} 46. Bh4+ {[%clk 0:00:17]}  Kg7 {[%clk 0:00:03]} 47. Be7 {[%clk 0:00:12]}  Rh8 {[%clk 0:00:03]} 48. Kf2 {[%clk 0:00:10]}  Kf7 {[%clk 0:00:03]} 49. d6 {[%clk 0:00:08]}  h2 {[%clk 0:00:03]} 50. Bd5+ {[%clk 0:00:07]}  Be6 {[%clk 0:00:04]} 51. Bh1 {[%clk 0:00:07]}  Ke8 {[%clk 0:00:04]} 52. Ke3 {[%clk 0:00:05]}  Kd7 {[%clk 0:00:04]} 53. Ke4 {[%clk 0:00:05]}  Bxd6 {[%clk 0:00:05]} 54. Bf6 {[%clk 0:00:05]}  Rh5 {[%clk 0:00:03]} 55. c4 {[%clk 0:00:05]}  Bxc4 {[%clk 0:00:02]} 56. Kd4 {[%clk 0:00:05]}  Bd5 {[%clk 0:00:02]} 57. Bxd5 {[%clk 0:00:06]}  Rxd5+ {[%clk 0:00:03]} 58. Kxd5 {[%clk 0:00:06]}  h1=Q+ {[%clk 0:00:03]} 59. Kc4 {[%clk 0:00:07]}  Qe4+ {[%clk 0:00:03]} 60. Kb3 {[%clk 0:00:06]}  Qf3+ {[%clk 0:00:03]} 61. Bc3 {[%clk 0:00:07]}  Be5 {[%clk 0:00:03]} 62. Kc4 {[%clk 0:00:07]}  Bxc3 {[%clk 0:00:03]} 63. bxc3 {[%clk 0:00:08]}  Qc6+ {[%clk 0:00:03]} 64. Kb4 {[%clk 0:00:09]}  Qb5+ {[%clk 0:00:04]} 65. Ka3 {[%clk 0:00:09]}  Qxa5+ {[%clk 0:00:04]} 66. Kb3 {[%clk 0:00:10]}  Qb6+ {[%clk 0:00:05]} 67. Kc4 {[%clk 0:00:11]}  Qc6+ {[%clk 0:00:06]} 68. Kb3 {[%clk 0:00:12]}  Kc7 {[%clk 0:00:06]} 69. c4 {[%clk 0:00:12]}  Qc5 {[%clk 0:00:07]} 70. Kc3 {[%clk 0:00:13]}  a5 {[%clk 0:00:07]} 71. Kb3 {[%clk 0:00:14]}  Qb4+ {[%clk 0:00:07]} 72. Kc2 {[%clk 0:00:14]}  Qxc4+ {[%clk 0:00:08]} 73. Kb2 {[%clk 0:00:15]}  Qe2+ {[%clk 0:00:07]} 74. Kb3 {[%clk 0:00:15]}  Qd3+ {[%clk 0:00:08]} 75. Ka4 {[%clk 0:00:16]}  Qc4+ {[%clk 0:00:08]} 76. Ka3 {[%clk 0:00:15]}  Qb4+ {[%clk 0:00:08]} 77. Ka2 {[%clk 0:00:16]}  Kc6 {[%clk 0:00:08]} 78. Ka1 {[%clk 0:00:17]}  Kc5 {[%clk 0:00:09]} 79. Ka2 {[%clk 0:00:18]}  Kc4 {[%clk 0:00:10]} 80. Ka1 {[%clk 0:00:19]}  Kc3 {[%clk 0:00:10]} 0-1


[Site "https://www.chess.com"]

[Event "Titled Tuesday Blitz June 28 Late 2022"]
[White "Dardha, Daniel"]
[Black "Bayo Milagro, Alvaro"]
[WhiteFideId "240990"]
[BlackFideId "22275240"]
[WhiteElo "2800"]
[BlackElo "2629"]
[Result "1-0"]
[Round "11"]
[TimeControl "180+1"]
[Date "2022.06.28"]
[WhiteClock "0:00:11"]
[BlackClock "0:00:04"]

1. e4 {[%clk 0:03:00]}  e5 {[%clk 0:03:00]} 2. Bb5 {[%clk 0:02:56]}  c6 {[%clk 0:02:57]} 3. Ba4 {[%clk 0:02:54]}  Nf6 {[%clk 0:02:57]} 4. Qe2 {[%clk 0:02:50]}  Bc5 {[%clk 0:02:54]} 5. d3 {[%clk 0:02:48]}  Qa5+ {[%clk 0:02:46]} 6. Nc3 {[%clk 0:02:47]}  Bb4 {[%clk 0:02:46]} 7. Bd2 {[%clk 0:02:41]}  Bxc3 {[%clk 0:02:45]} 8. Bxc3 {[%clk 0:02:42]}  Qxa4 {[%clk 0:02:46]} 9. Bxe5 {[%clk 0:02:43]}  Qa5+ {[%clk 0:02:38]} 10. Bc3 {[%clk 0:02:43]}  Qd8 {[%clk 0:02:39]} 11. Nf3 {[%clk 0:02:41]}  d6 {[%clk 0:02:38]} 12. O-O-O {[%clk 0:02:38]}  Be6 {[%clk 0:02:37]} 13. g4 {[%clk 0:02:38]}  Nbd7 {[%clk 0:02:34]} 14. g5 {[%clk 0:02:36]}  Nh5 {[%clk 0:02:35]} 15. Qe3 {[%clk 0:02:31]}  Qb6 {[%clk 0:02:24]} 16. Nd4 {[%clk 0:02:28]}  O-O-O {[%clk 0:02:19]} 17. f4 {[%clk 0:02:21]}  Rhe8 {[%clk 0:02:04]} 18. Kb1 {[%clk 0:02:15]}  g6 {[%clk 0:02:02]} 19. Qd2 {[%clk 0:02:08]}  Kb8 {[%clk 0:01:50]} 20. Nxe6 {[%clk 0:02:03]}  fxe6 {[%clk 0:01:46]} 21. Ba5 {[%clk 0:02:02]}  Qb5 {[%clk 0:01:39]} 22. Bxd8 {[%clk 0:02:03]}  Rxd8 {[%clk 0:01:40]} 23. Qc3 {[%clk 0:01:57]}  Nxf4 {[%clk 0:01:34]} 24. Qg7 {[%clk 0:01:55]}  Qxg5 {[%clk 0:01:33]} 25. Rdf1 {[%clk 0:01:47]}  e5 {[%clk 0:01:32]} 26. Qxh7 {[%clk 0:01:44]}  Qf6 {[%clk 0:01:27]} 27. d4 {[%clk 0:01:44]}  Kc7 {[%clk 0:01:25]} 28. dxe5 {[%clk 0:01:44]}  Qxe5 {[%clk 0:01:21]} 29. Qf7 {[%clk 0:01:38]}  Rf8 {[%clk 0:01:18]} 30. Qc4 {[%clk 0:01:37]}  g5 {[%clk 0:01:13]} 31. Rd1 {[%clk 0:01:31]}  Nc5 {[%clk 0:01:04]} 32. Rhe1 {[%clk 0:01:19]}  b5 {[%clk 0:01:03]} 33. Qb4 {[%clk 0:01:17]}  Kb6 {[%clk 0:01:01]} 34. Qd2 {[%clk 0:01:14]}  Rf6 {[%clk 0:00:55]} 35. Qe3 {[%clk 0:01:09]}  Kb7 {[%clk 0:00:53]} 36. Qg3 {[%clk 0:00:59]}  Na4 {[%clk 0:00:51]} 37. Qa3 {[%clk 0:00:56]}  Ne6 {[%clk 0:00:47]} 38. Rxd6 {[%clk 0:00:53]}  Nec5 {[%clk 0:00:32]} 39. Rxf6 {[%clk 0:00:45]}  Qxf6 {[%clk 0:00:32]} 40. e5 {[%clk 0:00:45]}  Qf2 {[%clk 0:00:29]} 41. Qe3 {[%clk 0:00:39]}  Qxe3 {[%clk 0:00:29]} 42. Rxe3 {[%clk 0:00:40]}  Ne6 {[%clk 0:00:29]} 43. b4 {[%clk 0:00:40]}  c5 {[%clk 0:00:26]} 44. a3 {[%clk 0:00:37]}  cxb4 {[%clk 0:00:21]} 45. axb4 {[%clk 0:00:38]}  Nb6 {[%clk 0:00:22]} 46. Rd3 {[%clk 0:00:36]}  Nc4 {[%clk 0:00:22]} 47. Rd7+ {[%clk 0:00:36]}  Kb6 {[%clk 0:00:19]} 48. Re7 {[%clk 0:00:34]}  Nc7 {[%clk 0:00:20]} 49. e6 {[%clk 0:00:32]}  Kc6 {[%clk 0:00:18]} 50. c3 {[%clk 0:00:24]}  a6 {[%clk 0:00:17]} 51. Kc2 {[%clk 0:00:23]}  Ne3+ {[%clk 0:00:17]} 52. Kd3 {[%clk 0:00:22]}  Ned5 {[%clk 0:00:18]} 53. Rf7 {[%clk 0:00:17]}  Nxe6 {[%clk 0:00:18]} 54. Ke4 {[%clk 0:00:16]}  Kd6 {[%clk 0:00:17]} 55. Ra7 {[%clk 0:00:15]}  Nxc3+ {[%clk 0:00:16]} 56. Kf5 {[%clk 0:00:13]}  Nc7 {[%clk 0:00:10]} 57. Kxg5 {[%clk 0:00:13]}  Kc6 {[%clk 0:00:10]} 58. h4 {[%clk 0:00:13]}  Kb6 {[%clk 0:00:11]} 59. Rxc7 {[%clk 0:00:12]}  Kxc7 {[%clk 0:00:12]} 60. h5 {[%clk 0:00:13]}  Ne4+ {[%clk 0:00:12]} 61. Kg6 {[%clk 0:00:13]}  Nf2 {[%clk 0:00:03]} 62. h6 {[%clk 0:00:12]}  Ng4 {[%clk 0:00:03]} 63. h7 {[%clk 0:00:11]}  Ne5+ {[%clk 0:00:04]} 1-0


[Site "https://www.chess.com"]

[Event "Titled Tuesday Blitz June 28 Late 2022"]
[White "Gaehwiler, Gabriel"]
[Black "Howell, David W L"]
[WhiteFideId "1314530"]
[BlackFideId "410608"]
[WhiteElo "2736"]
[BlackElo "2919"]
[Result "0-1"]
[Round "11"]
[TimeControl "180+1"]
[Date "2022.06.28"]
[WhiteClock "0:00:06"]
[BlackClock "0:00:58"]

1. Nf3 {[%clk 0:03:00]}  Na6 {[%clk 0:02:51]} 2. c4 {[%clk 0:03:01]}  g6 {[%clk 0:02:41]} 3. h4 {[%clk 0:03:01]}  Nf6 {[%clk 0:02:36]} 4. d4 {[%clk 0:03:01]}  c5 {[%clk 0:02:32]} 5. d5 {[%clk 0:03:00]}  b5 {[%clk 0:02:22]} 6. cxb5 {[%clk 0:02:53]}  Nc7 {[%clk 0:02:23]} 7. Nc3 {[%clk 0:02:53]}  a6 {[%clk 0:02:24]} 8. e4 {[%clk 0:02:42]}  axb5 {[%clk 0:02:16]} 9. e5 {[%clk 0:02:42]}  b4 {[%clk 0:02:16]} 10. exf6 {[%clk 0:02:34]}  bxc3 {[%clk 0:02:14]} 11. bxc3 {[%clk 0:01:58]}  exf6 {[%clk 0:02:07]} 12. h5 {[%clk 0:01:42]}  g5 {[%clk 0:02:07]} 13. Bc4 {[%clk 0:01:21]}  d6 {[%clk 0:01:57]} 14. O-O {[%clk 0:01:20]}  Be7 {[%clk 0:01:54]} 15. Re1 {[%clk 0:01:05]}  h6 {[%clk 0:01:53]} 16. Qe2 {[%clk 0:01:01]}  Kf8 {[%clk 0:01:52]} 17. a4 {[%clk 0:00:58]}  f5 {[%clk 0:01:51]} 18. a5 {[%clk 0:00:55]}  Bf6 {[%clk 0:01:51]} 19. Bb2 {[%clk 0:00:54]}  Kg7 {[%clk 0:01:48]} 20. a6 {[%clk 0:00:50]}  Bd7 {[%clk 0:01:36]} 21. Qd3 {[%clk 0:00:46]}  Ra7 {[%clk 0:01:30]} 22. Nd2 {[%clk 0:00:38]}  Qa8 {[%clk 0:01:30]} 23. Nf1 {[%clk 0:00:35]}  Rb8 {[%clk 0:01:29]} 24. Re2 {[%clk 0:00:34]}  f4 {[%clk 0:01:18]} 25. Rc2 {[%clk 0:00:21]}  Bg4 {[%clk 0:01:14]} 26. Nd2 {[%clk 0:00:14]}  Bxh5 {[%clk 0:01:13]} 27. Ne4 {[%clk 0:00:14]}  Bg6 {[%clk 0:01:12]} 28. Re1 {[%clk 0:00:14]}  Nxa6 {[%clk 0:01:09]} 29. Qf3 {[%clk 0:00:13]}  Be5 {[%clk 0:01:05]} 30. Rce2 {[%clk 0:00:13]}  f6 {[%clk 0:01:00]} 31. Nd2 {[%clk 0:00:06]}  Rxb2 {[%clk 0:00:58]} 0-1


[Site "https://www.chess.com"]

[Event "Titled Tuesday Blitz June 28 Late 2022"]
[White "Glavina, Pablo"]
[Black "Yuan, Qingyu"]
[WhiteFideId "100234"]
[BlackFideId "8609772"]
[WhiteElo "2255"]
[BlackElo "2762"]
[Result "1-0"]
[Round "11"]
[TimeControl "180+1"]
[Date "2022.06.28"]
[WhiteClock "0:00:26"]
[BlackClock "0:00:02"]

1. e4 {[%clk 0:03:00]}  c6 {[%clk 0:02:59]} 2. d3 {[%clk 0:03:00]}  d5 {[%clk 0:03:00]} 3. Nf3 {[%clk 0:03:00]}  dxe4 {[%clk 0:02:59]} 4. dxe4 {[%clk 0:02:59]}  Qxd1+ {[%clk 0:03:00]} 5. Kxd1 {[%clk 0:02:59]}  Nf6 {[%clk 0:03:00]} 6. Nbd2 {[%clk 0:02:49]}  g6 {[%clk 0:03:01]} 7. c3 {[%clk 0:02:46]}  Bh6 {[%clk 0:03:01]} 8. Bc4 {[%clk 0:02:42]}  Nbd7 {[%clk 0:02:48]} 9. Kc2 {[%clk 0:02:31]}  b5 {[%clk 0:02:38]} 10. Be2 {[%clk 0:02:23]}  Nc5 {[%clk 0:02:35]} 11. Nb3 {[%clk 0:02:03]}  Nxb3 {[%clk 0:02:20]} 12. axb3 {[%clk 0:02:02]}  Bxc1 {[%clk 0:02:20]} 13. Rhxc1 {[%clk 0:02:03]}  Nxe4 {[%clk 0:02:21]} 14. Nd4 {[%clk 0:02:01]}  Nxf2 {[%clk 0:01:54]} 15. Bf3 {[%clk 0:02:01]}  O-O {[%clk 0:01:52]} 16. Bxc6 {[%clk 0:01:52]}  Rb8 {[%clk 0:01:47]} 17. Re1 {[%clk 0:01:45]}  Ng4 {[%clk 0:01:10]} 18. Rxe7 {[%clk 0:01:42]}  a6 {[%clk 0:01:10]} 19. h3 {[%clk 0:01:41]}  Nf6 {[%clk 0:01:01]} 20. Rf1 {[%clk 0:01:38]}  Kg7 {[%clk 0:01:00]} 21. g4 {[%clk 0:01:30]}  h6 {[%clk 0:01:00]} 22. b4 {[%clk 0:01:21]}  Rb6 {[%clk 0:00:59]} 23. Bf3 {[%clk 0:01:10]}  Rd6 {[%clk 0:00:48]} 24. Rfe1 {[%clk 0:01:04]}  Rfd8 {[%clk 0:00:45]} 25. Rc7 {[%clk 0:00:58]}  R6d7 {[%clk 0:00:40]} 26. Re7 {[%clk 0:00:56]}  Rxe7 {[%clk 0:00:36]} 27. Rxe7 {[%clk 0:00:55]}  Re8 {[%clk 0:00:26]} 28. Ra7 {[%clk 0:00:51]}  Nh7 {[%clk 0:00:13]} 29. Kd2 {[%clk 0:00:48]}  Ng5 {[%clk 0:00:14]} 30. Bg2 {[%clk 0:00:48]}  h5 {[%clk 0:00:11]} 31. gxh5 {[%clk 0:00:41]}  gxh5 {[%clk 0:00:11]} 32. Ra8 {[%clk 0:00:40]}  Kf6 {[%clk 0:00:09]} 33. h4 {[%clk 0:00:37]}  Ne6 {[%clk 0:00:05]} 34. Nxe6 {[%clk 0:00:30]}  fxe6 {[%clk 0:00:06]} 35. Bb7 {[%clk 0:00:30]}  Bd7 {[%clk 0:00:05]} 36. Rxe8 {[%clk 0:00:29]}  Bxe8 {[%clk 0:00:05]} 37. Bxa6 {[%clk 0:00:29]}  Ke5 {[%clk 0:00:06]} 38. Bc8 {[%clk 0:00:29]}  Bc6 {[%clk 0:00:03]} 39. Ke3 {[%clk 0:00:28]}  Bd5 {[%clk 0:00:03]} 40. Bd7 {[%clk 0:00:26]}  Bc4 {[%clk 0:00:02]} 41. Be8 {[%clk 0:00:26]}  Kf5 {[%clk 0:00:01]} 42. Bxh5 {[%clk 0:00:26]}  e5 {[%clk 0:00:01]} 43. Be2 {[%clk 0:00:26]}  Bxe2 {[%clk 0:00:01]} 44. Kxe2 {[%clk 0:00:26]}  Kg4 {[%clk 0:00:02]} 45. c4 {[%clk 0:00:26]}  bxc4 {[%clk 0:00:02]} 46. b5 {[%clk 0:00:27]}  c3 {[%clk 0:00:02]} 47. bxc3 {[%clk 0:00:26]}  Kxh4 {[%clk 0:00:02]} 48. b6 {[%clk 0:00:26]} 1-0


[Site "https://www.chess.com"]

[Event "Titled Tuesday Blitz June 28 Late 2022"]
[White "Haussernot, Cecile"]
[Black "Fawole, John Oyeyemi"]
[WhiteFideId "601632"]
[BlackFideId "8501319"]
[WhiteElo "2288"]
[BlackElo "2091"]
[Result "1-0"]
[Round "11"]
[TimeControl "180+1"]
[Date "2022.06.29"]
[WhiteClock "0:01:07"]
[BlackClock "0:00:05"]

1. e4 {[%clk 0:03:00]}  c5 {[%clk 0:02:59]} 2. Nf3 {[%clk 0:03:00]}  d6 {[%clk 0:02:58]} 3. d4 {[%clk 0:02:59]}  cxd4 {[%clk 0:02:58]} 4. Nxd4 {[%clk 0:02:57]}  Nf6 {[%clk 0:02:58]} 5. Nc3 {[%clk 0:02:55]}  a6 {[%clk 0:02:57]} 6. h3 {[%clk 0:02:54]}  h5 {[%clk 0:02:53]} 7. Bg5 {[%clk 0:02:50]}  Nbd7 {[%clk 0:02:52]} 8. Qd2 {[%clk 0:02:47]}  e6 {[%clk 0:02:46]} 9. O-O-O {[%clk 0:02:46]}  Qb6 {[%clk 0:02:44]} 10. f4 {[%clk 0:02:44]}  Be7 {[%clk 0:02:38]} 11. Be2 {[%clk 0:02:39]}  Qc7 {[%clk 0:02:32]} 12. g4 {[%clk 0:02:38]}  b5 {[%clk 0:02:04]} 13. gxh5 {[%clk 0:02:31]}  b4 {[%clk 0:02:03]} 14. Nb1 {[%clk 0:02:28]}  Nxe4 {[%clk 0:02:01]} 15. Qe3 {[%clk 0:02:28]}  Nxg5 {[%clk 0:01:58]} 16. fxg5 {[%clk 0:02:27]}  Qc5 {[%clk 0:01:48]} 17. Rhg1 {[%clk 0:02:25]}  Ne5 {[%clk 0:01:33]} 18. h6 {[%clk 0:02:08]}  g6 {[%clk 0:01:26]} 19. Bf3 {[%clk 0:01:54]}  Ra7 {[%clk 0:01:03]} 20. Be4 {[%clk 0:01:36]}  Rc7 {[%clk 0:00:53]} 21. Qf4 {[%clk 0:01:28]}  O-O {[%clk 0:00:44]} 22. h4 {[%clk 0:01:23]}  Nc4 {[%clk 0:00:23]} 23. Bxg6 {[%clk 0:01:10]}  fxg6 {[%clk 0:00:19]} 24. Qe4 {[%clk 0:01:11]}  Ne5 {[%clk 0:00:05]} 25. h5 {[%clk 0:01:10]}  Bb7 {[%clk 0:00:05]} 26. Qe3 {[%clk 0:01:07]} 1-0


[Site "https://www.chess.com"]

[Event "Titled Tuesday Blitz June 28 Late 2022"]
[White "Hua, Lefong"]
[Black "Ozates, Tuna"]
[WhiteFideId "2602253"]
[BlackFideId "6354521"]
[WhiteElo "2618"]
[BlackElo "2499"]
[Result "1-0"]
[Round "11"]
[TimeControl "180+1"]
[Date "2022.06.28"]
[WhiteClock "0:00:18"]
[BlackClock "0:00:01"]

1. d4 {[%clk 0:03:00]}  Nf6 {[%clk 0:03:00]} 2. c4 {[%clk 0:03:01]}  g6 {[%clk 0:02:59]} 3. Nc3 {[%clk 0:03:01]}  Bg7 {[%clk 0:02:59]} 4. e4 {[%clk 0:03:01]}  O-O {[%clk 0:02:59]} 5. f4 {[%clk 0:03:01]}  d6 {[%clk 0:02:53]} 6. Nf3 {[%clk 0:03:01]}  c5 {[%clk 0:02:54]} 7. d5 {[%clk 0:03:01]}  e6 {[%clk 0:02:54]} 8. Be2 {[%clk 0:03:00]}  exd5 {[%clk 0:02:54]} 9. cxd5 {[%clk 0:03:01]}  b5 {[%clk 0:02:54]} 10. e5 {[%clk 0:03:01]}  Nfd7 {[%clk 0:02:46]} 11. O-O {[%clk 0:02:46]}  dxe5 {[%clk 0:02:41]} 12. Bxb5 {[%clk 0:02:42]}  Qb6 {[%clk 0:02:28]} 13. Bc4 {[%clk 0:02:18]}  Ba6 {[%clk 0:02:05]} 14. Qe2 {[%clk 0:02:18]}  e4 {[%clk 0:01:49]} 15. Nxe4 {[%clk 0:02:05]}  Re8 {[%clk 0:01:46]} 16. Qc2 {[%clk 0:01:52]}  Bxc4 {[%clk 0:01:33]} 17. Qxc4 {[%clk 0:01:52]}  Bd4+ {[%clk 0:01:27]} 18. Kh1 {[%clk 0:01:29]}  Rxe4 {[%clk 0:01:21]} 19. Ng5 {[%clk 0:01:29]}  Re8 {[%clk 0:01:12]} 20. d6 {[%clk 0:01:24]}  Rf8 {[%clk 0:01:05]} 21. f5 {[%clk 0:01:21]}  Ne5 {[%clk 0:00:59]} 22. Qe2 {[%clk 0:01:11]}  Qxd6 {[%clk 0:00:56]} 23. Ne4 {[%clk 0:01:03]}  Qc6 {[%clk 0:00:28]} 24. Bg5 {[%clk 0:01:03]}  Nbd7 {[%clk 0:00:27]} 25. Be7 {[%clk 0:00:57]}  Rae8 {[%clk 0:00:09]} 26. f6 {[%clk 0:00:51]}  h5 {[%clk 0:00:07]} 27. Qd2 {[%clk 0:00:40]}  Ng4 {[%clk 0:00:05]} 28. Ng5 {[%clk 0:00:32]}  Ndxf6 {[%clk 0:00:03]} 29. Bxf8 {[%clk 0:00:30]}  Rxf8 {[%clk 0:00:02]} 30. Rae1 {[%clk 0:00:26]}  Ne3 {[%clk 0:00:02]} 31. Rxe3 {[%clk 0:00:25]}  Bxe3 {[%clk 0:00:03]} 32. Qxe3 {[%clk 0:00:26]}  Ng4 {[%clk 0:00:04]} 33. Qf4 {[%clk 0:00:25]}  Qd5 {[%clk 0:00:04]} 34. h3 {[%clk 0:00:24]}  Nh6 {[%clk 0:00:04]} 35. Ne4 {[%clk 0:00:23]}  Qd4 {[%clk 0:00:03]} 36. Nf6+ {[%clk 0:00:18]}  Kg7 {[%clk 0:00:04]} 37. Qg5 {[%clk 0:00:18]}  Nf5 {[%clk 0:00:02]} 38. Rxf5 {[%clk 0:00:17]}  Qd1+ {[%clk 0:00:02]} 39. Kh2 {[%clk 0:00:18]}  Qd6+ {[%clk 0:00:02]} 40. Rf4 {[%clk 0:00:18]}  h4 {[%clk 0:00:01]} 41. Nh5+ {[%clk 0:00:18]} 1-0


[Site "https://www.chess.com"]

[Event "Titled Tuesday Blitz June 28 Late 2022"]
[White "Janturin, Artur"]
[Black "Curtis, John"]
[WhiteFideId "4130022"]
[BlackFideId "3200256"]
[WhiteElo "2369"]
[BlackElo "2203"]
[Result "1-0"]
[Round "11"]
[TimeControl "180+1"]
[Date "2022.06.29"]
[WhiteClock "0:00:39"]
[BlackClock "0:00:03"]

1. b3 {[%clk 0:03:00]}  d5 {[%clk 0:02:59]} 2. Bb2 {[%clk 0:03:01]}  c6 {[%clk 0:02:59]} 3. g3 {[%clk 0:02:56]}  Bf5 {[%clk 0:02:59]} 4. Bg2 {[%clk 0:02:57]}  Nf6 {[%clk 0:02:58]} 5. d3 {[%clk 0:02:57]}  e6 {[%clk 0:02:58]} 6. Nd2 {[%clk 0:02:58]}  Be7 {[%clk 0:02:58]} 7. e4 {[%clk 0:02:57]}  dxe4 {[%clk 0:02:57]} 8. dxe4 {[%clk 0:02:57]}  Bg6 {[%clk 0:02:57]} 9. Qe2 {[%clk 0:02:55]}  a5 {[%clk 0:02:50]} 10. a3 {[%clk 0:02:51]}  Nbd7 {[%clk 0:02:31]} 11. Ngf3 {[%clk 0:02:50]}  Qc7 {[%clk 0:02:08]} 12. O-O {[%clk 0:02:48]}  O-O {[%clk 0:02:07]} 13. Nh4 {[%clk 0:02:44]}  Ne8 {[%clk 0:01:47]} 14. Nxg6 {[%clk 0:02:42]}  hxg6 {[%clk 0:01:46]} 15. e5 {[%clk 0:02:38]}  Rb8 {[%clk 0:01:29]} 16. f4 {[%clk 0:02:31]}  Nb6 {[%clk 0:01:12]} 17. h4 {[%clk 0:02:27]}  a4 {[%clk 0:01:04]} 18. b4 {[%clk 0:02:22]}  c5 {[%clk 0:01:04]} 19. b5 {[%clk 0:01:50]}  c4 {[%clk 0:01:02]} 20. Ne4 {[%clk 0:01:45]}  Nd5 {[%clk 0:00:55]} 21. Bd4 {[%clk 0:01:38]}  Rc8 {[%clk 0:00:28]} 22. h5 {[%clk 0:01:26]}  b6 {[%clk 0:00:28]} 23. Bh3 {[%clk 0:01:04]}  gxh5 {[%clk 0:00:26]} 24. Qxh5 {[%clk 0:01:03]}  Qd7 {[%clk 0:00:08]} 25. c3 {[%clk 0:00:50]}  f5 {[%clk 0:00:03]} 26. Qg6 {[%clk 0:00:39]} 1-0


[Site "https://www.chess.com"]